bitfinex-derivatives/quotes_BTCF0:USTF0_20250602
["timestamp","ask_amount","ask_price","bid_price","bid_amount"]
[1748865690243,1.09535677,104220.0,104210.0,0.0023847]
[1748865690443,1.09535677,104220.0,104210.0,0.0021847]
[1748865690839,1.09535677,104220.0,104210.0,0.0023847]
[1748865691055,1.09535677,104220.0,104180.0,0.0479715]
[1748865691056,0.1918736,104190.0,104180.0,0.0479715]
[1748865691246,1.0134736,104190.0,104180.0,0.0674]
[1748865691550,1.0134736,104190.0,104180.0,0.1918918]
[1748865691551,1.2053601,104190.0,104180.0,0.1918918]
[1748865691748,1.3092601,104190.0,104180.0,0.1918918]
[1748865692051,1.51713041,104190.0,104180.0,0.33973095]
[1748865692256,1.51713041,104190.0,104180.0,0.40713095]
[1748865692647,1.51813041,104190.0,104180.0,0.40713095]
[1748865693556,1.51913041,104190.0,104180.0,0.40713095]
[1748865693943,1.51913041,104190.0,104180.0,0.42152095]
[1748865695260,1.49146561,104190.0,104180.0,0.42152095]
[1748865695853,1.3166953,104190.0,104180.0,0.42152095]
[1748865697852,1.3166953,104190.0,104180.0,0.2738818]
[1748865698161,1.3166953,104190.0,104180.0,0.42132095]
[1748865698355,1.3166953,104190.0,104180.0,0.42152095]
[1748865698955,1.3166953,104190.0,104180.0,0.2738818]
[1748865699150,1.3166953,104190.0,104180.0,0.42152095]
[1748865700258,1.3166953,104190.0,104180.0,0.2738818]
[1748865700660,1.3166953,104190.0,104180.0,0.2736818]
[1748865700966,1.2128153,104190.0,104180.0,0.42152095]
[1748865701261,1.3166953,104190.0,104180.0,0.42152095]
[1748865704060,1.52456561,104190.0,104180.0,0.42152095]
[1748865706176,1.42068561,104190.0,104180.0,0.42152095]
[1748865706477,1.27131401,104190.0,104180.0,0.42152095]
[1748865706868,1.27131401,104190.0,104180.0,0.4059118]
[1748865707265,1.0634437,104190.0,104180.0,0.4059118]
[1748865707671,1.1299437,104190.0,104180.0,0.25827265]
[1748865708572,1.1299437,104190.0,104180.0,0.08179]
[1748865708768,1.1299437,104190.0,104180.0,0.08199]
[1748865709276,1.1299437,104190.0,104180.0,0.2738819]
[1748865709472,1.1299437,104190.0,104180.0,0.08199]
[1748865709668,1.27758285,104190.0,104180.0,0.01459]
[1748865709972,1.521206,104190.0,104180.0,0.01459]
[1748865710278,1.571206,104190.0,104180.0,0.01155284]
[1748865710478,1.42356685,104190.0,104180.0,0.01155284]
[1748865711877,1.43347835,104190.0,104180.0,0.01155284]
[1748865712471,1.73066547,104190.0,104180.0,0.01155284]
[1748865714078,1.43347835,104190.0,104180.0,0.01155284]
[1748865714879,1.73065877,104190.0,104180.0,0.01155284]
[1748865716979,1.43347835,104190.0,104180.0,0.01155284]
[1748865717380,2.27827372,104190.0,104180.0,0.01155284]
[1748865718576,2.18228972,104190.0,104180.0,0.01155284]
[1748865719272,1.46068972,104190.0,104180.0,0.01155284]
[1748865719583,2.18228972,104190.0,104180.0,0.01155284]
[1748865720179,1.88505435,104190.0,104180.0,0.01155284]
[1748865721582,1.88473435,104190.0,104180.0,0.01155284]
[1748865721781,1.83473435,104190.0,104180.0,0.01155284]
[1748865722175,1.6870952,104190.0,104180.0,0.01155284]
[1748865722378,1.83473435,104190.0,104180.0,0.01155284]
[1748865723085,1.28749435,104190.0,104180.0,0.01155284]
[1748865723282,1.53168755,104190.0,104180.0,0.35108399]
[1748865723476,1.53168755,104190.0,104180.0,0.45318399]
[1748865723477,1.49848755,104190.0,104180.0,0.45318399]
[1748865723877,1.46518755,104190.0,104180.0,0.45318399]
[1748865724377,1.36102755,104190.0,104180.0,0.45318399]
[1748865724586,1.36102755,104190.0,104180.0,0.43757368]
[1748865724782,1.0634437,104190.0,104180.0,0.43757368]
[1748865724986,1.2718069,104190.0,104180.0,0.43757368]
[1748865725288,1.0634437,104190.0,104180.0,0.43757368]
[1748865725477,1.27181347,104190.0,104180.0,0.43757368]
[1748865725885,1.0634437,104190.0,104180.0,0.43757368]
[1748865726081,1.27181803,104190.0,104180.0,0.43757368]
[1748865726390,1.0634437,104190.0,104180.0,0.43757368]
[1748865727089,1.0634437,104190.0,104180.0,0.44719368]
[1748865728488,1.36102755,104190.0,104180.0,0.44719368]
[1748865729782,1.0634437,104190.0,104180.0,0.44719368]
[1748865734697,1.36102755,104190.0,104180.0,0.43158394]
[1748865735691,1.02118385,104190.0,104180.0,1.02178309]
[1748865735991,1.21305735,104190.0,104180.0,0.87414394]
[1748865736196,0.85225735,104190.0,104180.0,0.87414394]
[1748865736391,0.5546735,104190.0,104180.0,0.72650479]
[1748865736593,0.9154735,104190.0,104180.0,0.87414394]
[1748865736794,1.0154735,104190.0,104180.0,0.87414394]
[1748865737192,0.9154735,104190.0,104180.0,0.87434394]
[1748865737593,1.1238527,104190.0,104180.0,0.87434394]
[1748865740094,0.9154735,104190.0,104180.0,0.87434394]
[1748865741699,0.7236,104190.0,104180.0,0.87434394]
[1748865741999,0.85038396,104200.0,104190.0,0.1918735]
[1748865742199,0.85038396,104200.0,104190.0,0.40731265]
[1748865742200,1.0587208,104200.0,104190.0,0.40731265]
[1748865742406,0.40033695,104200.0,104190.0,0.40731265]
[1748865742905,0.19200011,104200.0,104190.0,0.40731265]
[1748865743294,0.55480011,104200.0,104190.0,0.40731265]
[1748865743499,0.76609611,104200.0,104190.0,0.40731265]
[1748865744107,0.76609611,104200.0,104190.0,0.41692265]
[1748865746606,0.55780011,104200.0,104190.0,0.41692265]
[1748865747094,0.55780011,104200.0,104190.0,0.2692835]
[1748865747294,1.08093526,104200.0,104190.0,0.04391]
[1748865747501,1.08093526,104200.0,104190.0,0.2357835]
[1748865747696,1.08093526,104200.0,104190.0,0.04391]
[1748865747903,1.08093526,104200.0,104190.0,0.00981]
[1748865748104,0.87263926,104200.0,104190.0,0.00588844]
[1748865748309,0.87263926,104200.0,104190.0,0.00608844]
[1748865749705,0.72500011,104200.0,104190.0,0.00608844]
[1748865749907,0.87263926,104200.0,104190.0,0.00608844]
[1748865750507,0.72500011,104200.0,104190.0,0.00608844]
[1748865750904,1.17022311,104200.0,104190.0,0.00608844]
[1748865751109,1.71638311,104200.0,104190.0,0.00588844]
[1748865751411,1.71638311,104200.0,104190.0,0.00608844]
[1748865753403,1.56874396,104200.0,104190.0,0.00608844]
[1748865753611,1.71638311,104200.0,104190.0,0.00608844]
[1748865756610,1.41879926,104200.0,104190.0,0.00608844]
[1748865762112,0.1918919,104180.0,104170.0,0.03425564]
[1748865762422,1.56260157,104180.0,104170.0,0.00225564]
[1748865762609,1.63050157,104180.0,104170.0,0.00225564]
[1748865762925,1.63050157,104180.0,104170.0,0.19436604]
[1748865763114,1.48286242,104180.0,104170.0,0.03535564]
[1748865763313,1.48286242,104180.0,104170.0,0.07085564]
[1748865763517,1.48286242,104180.0,104170.0,0.07185564]
[1748865764116,1.48286242,104180.0,104170.0,0.03735564]
[1748865764920,1.48286242,104180.0,104170.0,0.00445564]
[1748865765121,1.63050157,104180.0,104170.0,0.00445564]
[1748865765618,1.63050157,104180.0,104170.0,0.00425564]
[1748865765918,1.63050157,104180.0,104170.0,0.00445564]
[1748865766619,1.33271105,104180.0,104170.0,0.00445564]
[1748865767121,1.22903105,104180.0,104170.0,0.00445564]
[1748865767312,1.23848768,104180.0,104170.0,0.00445564]
[1748865771423,1.23848768,104180.0,104170.0,0.03615564]
[1748865772423,1.23848768,104180.0,104170.0,0.06855564]
[1748865772618,1.27338768,104180.0,104170.0,0.06855564]
[1748865778026,1.5711782,104180.0,104170.0,0.06855564]
[1748865780724,0.1919103,104170.0,104160.0,0.0316]
[1748865781027,1.30021997,104170.0,104160.0,0.0663]
[1748865781434,1.15258082,104170.0,104160.0,0.2582288]
[1748865781637,1.12008082,104170.0,104160.0,0.43916795]
[1748865781820,1.12008082,104170.0,104160.0,0.25023915]
[1748865782024,0.8222903,104170.0,104160.0,0.25023915]
[1748865782226,0.8222903,104170.0,104160.0,0.44216795]
[1748865782227,0.7563903,104170.0,104160.0,0.44216795]
[1748865782530,0.95418082,104170.0,104160.0,0.44216795]
[1748865782730,1.05418082,104170.0,104160.0,0.44416795]
[1748865782931,0.95050082,104170.0,104160.0,0.44416795]
[1748865783133,0.6527103,104170.0,104160.0,0.44416795]
[1748865783331,0.3608,104170.0,104160.0,0.44416795]
[1748865783529,0.5527101,104170.0,104160.0,0.44416795]
[1748865790030,0.6527101,104170.0,104160.0,0.44396795]
[1748865790336,0.6527101,104170.0,104160.0,0.25223915]
[1748865790533,0.90184925,104170.0,104160.0,0.0713]
[1748865791228,0.90184925,104170.0,104160.0,0.0715]
[1748865792136,1.19963977,104170.0,104160.0,0.05588689]
[1748865792739,1.05200062,104170.0,104160.0,0.24781549]
[1748865792923,1.05200062,104170.0,104160.0,0.42785464]
[1748865793126,0.98400062,104170.0,104160.0,0.42785464]
[1748865793733,0.6862101,104170.0,104160.0,0.42785464]
[1748865794737,0.6527101,104170.0,104160.0,0.42785464]
[1748865797038,0.95050062,104170.0,104160.0,0.42785464]
[1748865797727,1.01890062,104170.0,104160.0,0.42785464]
[1748865797930,0.7211101,104170.0,104160.0,0.42785464]
[1748865798638,0.6886101,104170.0,104160.0,0.42785464]
[1748865801439,0.7214101,104170.0,104160.0,0.42785464]
[1748865803638,0.6527101,104170.0,104160.0,0.42785464]
[1748865803840,0.5527101,104170.0,104160.0,1.00240151]
[1748865804044,0.5527101,104170.0,104160.0,0.85476236]
[1748865804237,0.85050062,104170.0,104160.0,0.85476236]
[1748865805238,0.88620062,104170.0,104160.0,0.85476236]
[1748865805540,0.98620062,104170.0,104160.0,0.85476236]
[1748865805741,1.05360062,104170.0,104160.0,0.41224236]
[1748865805942,1.05360062,104170.0,104160.0,0.85476236]
[1748865806139,1.05360062,104170.0,104160.0,0.85456236]
[1748865806336,1.05360062,104170.0,104160.0,0.85476236]
[1748865807138,0.95360062,104170.0,104160.0,0.85476236]
[1748865807739,0.6558101,104170.0,104160.0,0.85476236]
[1748865808744,0.7558101,104170.0,104160.0,0.85476236]
[1748865809642,0.7558101,104170.0,104160.0,0.2318286]
[1748865809843,0.7558101,104170.0,104160.0,0.6743486]
[1748865810045,0.7558101,104170.0,104160.0,0.6741486]
[1748865810238,0.7558101,104170.0,104160.0,0.6743486]
[1748865812345,0.3950101,104170.0,104160.0,0.6743486]
[1748865812550,0.7558101,104170.0,104160.0,0.6743486]
[1748865813050,0.7558101,104170.0,104160.0,0.7095486]
[1748865813234,0.7558101,104170.0,104160.0,0.2670286]
[1748865813848,0.6558101,104170.0,104160.0,0.2670286]
[1748865814250,0.6558101,104170.0,104160.0,0.41466775]
[1748865814448,0.6558101,104170.0,104160.0,0.44996775]
[1748865815146,0.9647939,104170.0,104160.0,0.44996775]
[1748865815341,0.9647939,104170.0,104160.0,0.89248775]
[1748865815654,0.7558101,104170.0,104160.0,0.89248775]
[1748865817445,0.7558101,104170.0,104160.0,0.0751]
[1748865817647,0.7558101,104170.0,104160.0,0.2318285]
[1748865818452,1.05360062,104170.0,104160.0,0.2318285]
[1748865819045,1.05360062,104170.0,104160.0,0.0399]
[1748865819247,1.41021231,104170.0,104160.0,0.0052]
[1748865819538,1.20123977,104170.0,104160.0,0.005]
[1748865819739,0.90344925,104170.0,104160.0,0.005]
[1748865819947,0.90344925,104170.0,104160.0,0.0052]
[1748865821140,1.34596925,104170.0,104160.0,0.0052]
[1748865821344,0.1919285,104160.0,104150.0,0.00014371]
[1748865821560,1.30431508,104160.0,104150.0,0.00014371]
[1748865821749,1.15667593,104160.0,104150.0,0.00034371]
[1748865822150,1.16630292,104160.0,104150.0,0.00034371]
[1748865822453,0.86803549,104160.0,104150.0,0.00034371]
[1748865823139,1.16604424,104160.0,104150.0,0.00034371]
[1748865823341,1.16604424,104160.0,104150.0,0.01474371]
[1748865823537,1.05273725,104160.0,104150.0,0.35432976]
[1748865823752,1.05273725,104160.0,104150.0,0.42212976]
[1748865823944,0.7547285,104160.0,104150.0,0.45792976]
[1748865824147,0.7547285,104160.0,104150.0,0.46092976]
[1748865824148,0.83147937,104160.0,104150.0,0.46092976]
[1748865824945,0.83347937,104160.0,104150.0,0.45792976]
[1748865825147,1.13148812,104160.0,104150.0,0.45792976]
[1748865825453,0.83447937,104160.0,104150.0,0.45792976]
[1748865828654,0.83447937,104160.0,104150.0,0.31029061]
[1748865828854,0.83447937,104160.0,104150.0,0.45792976]
[1748865829157,0.83447937,104160.0,104150.0,0.24029061]
[1748865829455,0.98211852,104160.0,104150.0,0.24049061]
[1748865829654,0.98211852,104160.0,104150.0,0.24029061]
[1748865829655,0.83447937,104160.0,104150.0,0.24029061]
[1748865829954,0.83447937,104160.0,104150.0,0.24049061]
[1748865830347,0.83447937,104160.0,104150.0,0.04854371]
[1748865830547,0.83447937,104160.0,104150.0,0.04834371]
[1748865830746,0.83447937,104160.0,104150.0,0.24049061]
[1748865830955,0.83447937,104160.0,104150.0,0.38812976]
[1748865831151,0.83447937,104160.0,104150.0,0.46022976]
[1748865831751,0.73447937,104160.0,104150.0,0.46022976]
[1748865831954,0.66777937,104160.0,104150.0,0.46022976]
[1748865832265,0.63247937,104160.0,104150.0,0.46022976]
[1748865832959,0.63147937,104160.0,104150.0,0.46022976]
[1748865833957,0.63047937,104160.0,104150.0,0.46022976]
[1748865834561,0.63047937,104160.0,104150.0,0.46122976]
[1748865834857,0.62947937,104160.0,104150.0,0.46222976]
[1748865837159,0.63047937,104160.0,104150.0,0.46122976]
[1748865837660,0.63047937,104160.0,104150.0,0.46022976]
[1748865838665,0.62947937,104160.0,104150.0,0.46222976]
[1748865838963,0.83812256,104160.0,104150.0,0.46222976]
[1748865839765,0.62947937,104160.0,104150.0,0.46222976]
[1748865840661,0.62947937,104160.0,104150.0,0.46122976]
[1748865840854,0.63047937,104160.0,104150.0,0.46022976]
[1748865841961,0.07775087,104160.0,104150.0,0.56430976]
[1748865842559,0.07775087,104160.0,104150.0,1.16876091]
[1748865842760,0.20864319,104170.0,104160.0,0.1919284]
[1748865842954,0.1684524,104180.0,104170.0,0.19191]
[1748865843150,0.1684524,104180.0,104170.0,0.90752915]
[1748865843363,0.00014371,104180.0,104170.0,1.00352115]
[1748865843666,0.00014371,104180.0,104170.0,1.25352115]
[1748865843667,1e-08,104180.0,104170.0,1.25352115]
[1748865844161,1e-08,104180.0,104170.0,1.00352115]
[1748865844756,0.00100001,104180.0,104170.0,1.00352115]
[1748865845159,0.00100001,104180.0,104170.0,1.01791115]
[1748865846555,0.00100001,104180.0,104170.0,1.46235115]
[1748865846866,0.19289171,104180.0,104170.0,0.6702]
[1748865847065,0.19289171,104180.0,104170.0,0.77448]
[1748865847367,0.22659171,104180.0,104170.0,1.36639915]
[1748865847757,0.26039171,104180.0,104170.0,1.36635915]
[1748865847967,0.29449171,104180.0,104170.0,1.36635915]
[1748865848262,0.29449171,104180.0,104170.0,1.36615915]
[1748865848458,0.29449171,104180.0,104170.0,1.36635915]
[1748865849872,0.65529171,104180.0,104170.0,0.2411]
[1748865850055,0.65529171,104180.0,104170.0,0.68522]
[1748865850463,0.65529171,104180.0,104170.0,0.68554]
[1748865851165,0.65529171,104180.0,104170.0,0.83317915]
[1748865856371,0.56991502,104180.0,104170.0,0.86687915]
[1748865856577,0.20911502,104180.0,104170.0,1.26257915]
[1748865856872,0.20911502,104180.0,104170.0,0.90177915]
[1748865856873,0.20913719,104180.0,104170.0,0.90177915]
[1748865857665,0.40102889,104180.0,104170.0,0.90157915]
[1748865857861,0.29639171,104180.0,104170.0,0.45733915]
[1748865858073,0.29639171,104180.0,104170.0,0.90165915]
[1748865858472,0.29639171,104180.0,104170.0,0.90185915]
[1748865859875,0.29639171,104180.0,104170.0,0.75422]
[1748865860074,0.29639171,104180.0,104170.0,0.2411]
[1748865860276,0.90483086,104180.0,104170.0,0.2065001]
[1748865860478,1.11296804,104180.0,104170.0,0.6511401]
[1748865860677,0.75719171,104180.0,104170.0,0.6509401]
[1748865860878,0.75719171,104180.0,104170.0,0.79877925]
[1748865861182,0.65719171,104180.0,104170.0,0.83387925]
[1748865861480,0.75719171,104180.0,104170.0,0.83387925]
[1748865862977,0.76019171,104180.0,104170.0,0.38923925]
[1748865863274,0.86864039,104180.0,104170.0,0.83395925]
[1748865865584,0.96864039,104180.0,104170.0,0.2416001]
[1748865865786,0.96864039,104180.0,104170.0,0.6509801]
[1748865867276,0.96864039,104180.0,104170.0,0.6860801]
[1748865867886,0.96864039,104180.0,104170.0,0.83371925]
[1748865868081,0.96864039,104180.0,104170.0,0.86641925]
[1748865868481,0.96864039,104180.0,104170.0,0.42193925]
[1748865868788,0.86864039,104180.0,104170.0,0.86669925]
[1748865868986,0.86864039,104180.0,104170.0,0.90249925]
[1748865870087,0.86464039,104180.0,104170.0,0.90249925]
[1748865870487,0.65619171,104180.0,104170.0,0.90249925]
[1748865871587,0.65619171,104180.0,104170.0,0.7548601]
[1748865874380,0.86484859,104180.0,104170.0,0.7548601]
[1748865874783,0.86484859,104180.0,104170.0,0.90249925]
[1748865877582,0.65619171,104180.0,104170.0,0.7548601]
[1748865877890,0.65619171,104180.0,104170.0,0.7541801]
[1748865878192,0.65619171,104180.0,104170.0,0.7539801]
[1748865878488,0.65619171,104180.0,104170.0,0.7541801]
[1748865878791,0.65619171,104180.0,104170.0,0.3101001]
[1748865878992,0.65619171,104180.0,104170.0,0.90173925]
[1748865880087,0.65619171,104180.0,104170.0,0.45773925]
[1748865880292,0.65619171,104180.0,104170.0,0.90217925]
[1748865881395,0.46430001,104180.0,104170.0,0.90217925]
[1748865881593,0.36080001,104180.0,104170.0,0.91989185]
[1748865881889,0.36080001,104180.0,104170.0,0.88656906]
[1748865882106,0.65778,104180.0,104170.0,0.88656906]
[1748865882597,0.8496717,104180.0,104170.0,0.88656906]
[1748865883186,0.8496717,104180.0,104170.0,0.88636906]
[1748865883387,0.8852717,104180.0,104170.0,0.88656906]
[1748865887801,0.58829171,104180.0,104170.0,0.88656906]
[1748865887995,0.22749171,104180.0,104170.0,0.88656906]
[1748865888195,0.58829171,104180.0,104170.0,0.88656906]
[1748865888796,0.58829171,104180.0,104170.0,0.29448991]
[1748865889099,0.65819171,104180.0,104170.0,0.88604906]
[1748865889298,0.65819171,104180.0,104170.0,0.44212906]
[1748865889494,0.65819171,104180.0,104170.0,0.88648906]
[1748865889692,0.75819171,104180.0,104170.0,0.88628906]
[1748865889891,0.75819171,104180.0,104170.0,0.88648906]
[1748865890495,0.65819171,104180.0,104170.0,0.88648906]
[1748865891693,0.65819171,104180.0,104170.0,0.44212906]
[1748865891895,0.65819171,104180.0,104170.0,0.29448991]
[1748865892198,0.75819171,104180.0,104170.0,0.67006991]
[1748865892602,0.90583086,104180.0,104170.0,0.67006991]
[1748865892992,1.6777183,104180.0,104150.0,0.09611531]
[1748865893198,0.70036775,104160.0,104150.0,0.24006081]
[1748865893404,0.80036775,104160.0,104150.0,0.24006081]
[1748865893698,0.7560286,104160.0,104150.0,0.24006081]
[1748865893895,0.90366775,104160.0,104150.0,0.00034371]
[1748865894202,1.20064774,104160.0,104150.0,0.19209071]
[1748865894393,1.20064774,104160.0,104150.0,0.19529071]
[1748865894596,1.20064774,104160.0,104150.0,0.19509071]
[1748865894805,1.20064774,104160.0,104150.0,0.19529071]
[1748865895795,0.84084774,104160.0,104150.0,0.19929071]
[1748865896094,1.56244774,104160.0,104150.0,0.19929071]
[1748865896292,1.41480859,104160.0,104150.0,0.19929071]
[1748865896993,1.49261739,104160.0,104150.0,0.19929071]
[1748865897501,1.1956374,104160.0,104150.0,0.19929071]
[1748865898301,1.40407153,104160.0,104150.0,0.19929071]
[1748865899988,1.40407153,104160.0,104150.0,0.00734371]
[1748865900193,1.55171068,104160.0,104150.0,0.19929081]
[1748865901301,1.40407153,104160.0,104150.0,0.19929081]
[1748865903397,0.0788088,104160.0,104150.0,1.04312911]
[1748865903601,0.0788088,104160.0,104150.0,0.96648996]
[1748865903798,0.0788088,104160.0,104150.0,0.41792996]
[1748865904099,0.0788088,104160.0,104150.0,0.96632996]
[1748865904309,0.1147088,104160.0,104150.0,0.96632996]
[1748865904693,0.0788088,104160.0,104150.0,0.96652996]
[1748865905102,0.0788088,104160.0,104150.0,0.81889081]
[1748865905307,0.0788088,104160.0,104150.0,0.99922996]
[1748865907207,0.2707371,104160.0,104150.0,0.99918996]
[1748865907407,0.1138088,104160.0,104150.0,0.99918996]
[1748865908495,0.3057371,104160.0,104150.0,0.99918996]
[1748865909208,0.1138088,104160.0,104150.0,0.99918996]
[1748865909504,0.3057371,104160.0,104150.0,0.99918996]
[1748865909707,0.3394371,104160.0,104150.0,0.99918996]
[1748865910304,0.3394371,104160.0,104150.0,0.99886996]
[1748865910494,0.94267123,104160.0,104150.0,0.23499081]
[1748865910698,1.04267123,104160.0,104150.0,0.67867081]
[1748865910902,1.04267123,104160.0,104150.0,0.67887081]
[1748865911103,1.04267123,104160.0,104150.0,0.67867081]
[1748865911300,1.04267123,104160.0,104150.0,0.67887081]
[1748865912508,1.04267123,104160.0,104150.0,0.23499081]
[1748865912713,1.04267123,104160.0,104150.0,0.67907081]
[1748865912908,1.04267123,104160.0,104150.0,0.23499081]
[1748865913096,1.19031038,104160.0,104150.0,0.00734371]
[1748865913403,0.98187625,104160.0,104150.0,0.19929041]
[1748865913601,0.98187625,104160.0,104150.0,0.19909041]
[1748865913806,0.98187625,104160.0,104150.0,0.19929041]
[1748865914204,0.8342371,104160.0,104150.0,0.19929041]
[1748865915111,0.8342371,104160.0,104150.0,0.34692956]
[1748865915409,0.8342371,104160.0,104150.0,0.38002956]
[1748865916211,0.98187625,104160.0,104150.0,0.00734371]
[1748865916913,1.27885624,104160.0,104150.0,0.00734371]
[1748865917110,1.27885624,104160.0,104150.0,0.00714371]
[1748865917703,0.98187625,104160.0,104150.0,0.00734371]
[1748865918506,1.19030199,104160.0,104150.0,0.00734371]
[1748865919213,0.98187625,104160.0,104150.0,0.00734371]
[1748865921209,1.19040026,104160.0,104150.0,0.19929041]
[1748865921514,0.98187625,104160.0,104150.0,0.00734371]
[1748865922112,0.98187625,104160.0,104150.0,0.19929041]
[1748865922508,0.98187625,104160.0,104150.0,0.03964371]
[1748865922709,0.8342371,104160.0,104150.0,0.37922956]
[1748865922914,0.8342371,104160.0,104150.0,0.44362956]
[1748865927613,1.13121709,104160.0,104150.0,0.44362956]
[1748865928820,1.13121709,104160.0,104150.0,0.88666956]
[1748865930321,0.93928879,104160.0,104150.0,0.88666956]
[1748865930625,0.92851709,104160.0,104150.0,0.88666956]
[1748865931416,0.95911709,104160.0,104150.0,0.88666956]
[1748865935328,1.05911709,104160.0,104150.0,0.88666956]
[1748865935533,1.09201709,104160.0,104150.0,0.88666956]
[1748865936934,0.99201709,104160.0,104150.0,0.88666956]
[1748865937533,0.6950371,104160.0,104150.0,0.88666956]
[1748865938329,0.6621371,104160.0,104150.0,0.54742956]
[1748865938638,0.84032773,104160.0,104150.0,0.99022956]
[1748865938929,1.00502773,104160.0,104150.0,0.99022956]
[1748865939130,0.7962371,104160.0,104150.0,0.44362956]
[1748865939431,1.03526278,104160.0,104150.0,0.88642956]
[1748865939624,0.8264371,104160.0,104150.0,0.73859041]
[1748865939933,0.8264371,104160.0,104150.0,0.73879041]
[1748865941435,0.8264371,104160.0,104150.0,0.88642956]
[1748865942031,0.8264371,104160.0,104150.0,0.73879041]
[1748865942229,0.8264371,104160.0,104150.0,0.88642956]
[1748865943038,0.7264371,104160.0,104150.0,0.88642956]
[1748865943225,0.8264371,104160.0,104150.0,0.88642956]
[1748865944828,0.8264371,104160.0,104150.0,0.73879041]
[1748865945031,0.8264371,104160.0,104150.0,0.88642956]
[1748865947542,0.7264371,104160.0,104150.0,0.88642956]
[1748865947929,0.7264371,104160.0,104150.0,0.44362956]
[1748865948136,0.7264371,104160.0,104150.0,0.88638956]
[1748865953735,0.6933371,104160.0,104150.0,0.88638956]
[1748865954440,0.7258371,104160.0,104150.0,0.88638956]
[1748865955433,0.3650371,104160.0,104150.0,0.88638956]
[1748865955739,0.7258371,104160.0,104150.0,0.88638956]
[1748865958641,0.8258371,104160.0,104150.0,0.88634956]
[1748865960038,0.8258371,104160.0,104150.0,0.85484956]
[1748865960449,0.8258371,104160.0,104150.0,0.03964371]
[1748865960745,0.8258371,104160.0,104150.0,0.44986371]
[1748865960746,0.97347625,104160.0,104150.0,0.44986371]
[1748865960940,1.27045624,104160.0,104150.0,0.45006371]
[1748865961138,1.12281709,104160.0,104150.0,0.64181051]
[1748865961345,1.12281709,104160.0,104150.0,0.67321051]
[1748865962644,1.12281709,104160.0,104150.0,0.82084966]
[1748865963846,1.12281709,104160.0,104150.0,0.88214966]
[1748865964448,1.12281709,104160.0,104150.0,0.73451051]
[1748865964638,1.12281709,104160.0,104150.0,0.88214966]
[1748865965250,1.12281709,104160.0,104150.0,0.54256371]
[1748865965540,1.12281709,104160.0,104150.0,0.82084966]
[1748865966348,1.27045624,104160.0,104150.0,0.03854371]
[1748865966645,1.27045624,104160.0,104150.0,0.00714371]
[1748865966848,1.27045624,104160.0,104150.0,0.00734371]
[1748865967042,1.27045624,104160.0,104150.0,0.00714371]
[1748865967652,1.27045624,104160.0,104150.0,0.00734371]
[1748865968039,0.1919468,104150.0,104140.0,0.03531254]
[1748865968239,0.89638595,104150.0,104140.0,0.00211254]
[1748865968446,0.89638595,104150.0,104140.0,0.01651254]
[1748865968843,1.19336594,104150.0,104140.0,0.01671254]
[1748865969749,1.19436594,104150.0,104140.0,0.01671254]
[1748865969950,1.20408338,104150.0,104140.0,0.01671254]
[1748865970944,0.90710339,104150.0,104140.0,0.01671254]
[1748865971146,0.90910339,104150.0,104140.0,0.01651254]
[1748865971346,0.90910339,104150.0,104140.0,0.01671254]
[1748865976249,0.90910339,104150.0,104130.0,0.2879741]
[1748865976453,0.90910339,104150.0,104040.0,0.22198759]
[1748865976454,0.32074355,104140.0,104070.0,0.0449627]
[1748865976754,0.32074355,104140.0,104010.0,0.0003645]
[1748865976755,0.50590204,104020.0,104010.0,0.0003645]
[1748865976955,0.80062575,104020.0,104010.0,0.11635018]
[1748865977262,0.86472575,104020.0,104010.0,0.0629]
[1748865977447,0.86472575,104020.0,104010.0,0.0631]
[1748865977948,1.0733693,104020.0,104010.0,0.1781]
[1748865978150,1.07575962,104020.0,104010.0,0.0631]
[1748865978346,1.07575962,104020.0,104010.0,0.1781]
[1748865978347,0.79503015,104020.0,104010.0,0.1781]
[1748865978551,0.9112693,104020.0,104010.0,0.1781]
[1748865978749,0.76363015,104020.0,104010.0,0.1781]
[1748865979049,0.76363015,104020.0,104010.0,0.18784541]
[1748865979050,0.95027519,104020.0,104010.0,0.18784541]
[1748865979255,0.99791279,104020.0,104010.0,0.18784541]
[1748865979554,0.96815345,104020.0,104010.0,0.07284541]
[1748865979755,0.96815345,104020.0,104010.0,0.18784541]
[1748865979958,0.96815345,104020.0,104010.0,0.07284541]
[1748865980257,0.1922053,104010.0,104000.0,0.121]
[1748865980556,0.3608,104010.0,104000.0,0.3446238]
[1748865980758,0.3608,104010.0,104000.0,1.1588918]
[1748865980759,0.5530053,104010.0,104000.0,1.1588918]
[1748865980960,0.5530053,104010.0,104000.0,1.1590918]
[1748865981254,0.71488205,104010.0,104000.0,0.5068]
[1748865981455,0.71488205,104010.0,104000.0,1.33190047]
[1748865981456,0.3608,104010.0,104000.0,1.33190047]
[1748865981953,0.3109,104010.0,104000.0,1.33290047]
[1748865982158,0.08061432,104020.0,104010.0,0.1922053]
[1748865982347,0.00014371,104030.0,104020.0,0.1921868]
[1748865982548,0.36094371,104030.0,104020.0,1.28731555]
[1748865982974,0.36094371,104030.0,104020.0,0.1921868]
[1748865983263,0.36094371,104030.0,104020.0,0.7795068]
[1748865983452,0.36094371,104030.0,104020.0,0.94138355]
[1748865983855,0.36094371,104030.0,104020.0,0.35406355]
[1748865984157,0.2883046,104020.0,104010.0,0.1922034]
[1748865984363,0.601054,104020.0,104010.0,0.1922034]
[1748865984657,0.001,104020.0,104010.0,0.81102015]
[1748865984860,0.001,104020.0,104010.0,1.06102015]
[1748865985061,0.00114371,104030.0,104020.0,0.1951868]
[1748865985362,0.00114371,104030.0,104020.0,0.95921555]
[1748865985660,0.00114371,104030.0,104020.0,1.36115555]
[1748865985853,0.00014371,104030.0,104020.0,1.35815555]
[1748865986157,0.00014371,104030.0,104020.0,1.35515555]
[1748865986667,0.3628,104040.0,104030.0,0.1921684]
[1748865986961,0.002,104040.0,104030.0,0.63694515]
[1748865987175,0.002,104040.0,104030.0,1.82370515]
[1748865987464,0.3628,104040.0,104030.0,1.82370515]
[1748865987652,0.36094371,104050.0,104040.0,0.1921499]
[1748865987847,0.36094371,104050.0,104040.0,1.16386994]
[1748865988152,0.36094371,104050.0,104040.0,1.09806519]
[1748865988353,0.36094371,104050.0,104040.0,1.09798519]
[1748865988651,0.36094371,104050.0,104040.0,1.09826519]
[1748865988850,0.36094371,104050.0,104040.0,1.10026519]
[1748865989254,0.36194371,104050.0,104040.0,1.10302519]
[1748865989456,0.36194371,104050.0,104040.0,0.50554519]
[1748865989659,0.36194371,104050.0,104040.0,0.94106844]
[1748865989854,0.36194371,104050.0,104040.0,1.13164519]
[1748865990061,0.36194371,104050.0,104040.0,1.10496281]
[1748865990260,0.36194371,104050.0,104040.0,1.10472281]
[1748865990459,0.36194371,104050.0,104040.0,1.12204375]
[1748865991066,0.36194371,104050.0,104040.0,1.12172375]
[1748865991474,0.36194371,104050.0,104040.0,0.52488375]
[1748865991659,0.55407511,104050.0,104040.0,0.52488375]
[1748865991861,0.36194371,104050.0,104040.0,0.64492375]
[1748865992061,0.36194371,104050.0,104040.0,1.12140375]
[1748865992466,0.36194371,104050.0,104040.0,0.64492375]